fUSD/lending_fUSD_20250209
["ID","MTS","AMOUNT","RATE_DAILY","PERIOD"]
[352369293,1739064662150,-500.0,0.00010817,2]
[352369294,1739064662160,-2957.55,0.00010817,2]
[352369295,1739064662170,-1035.92,0.00010817,2]
[352369296,1739064662181,-525.11,0.00010817,2]
[352369297,1739064662191,-1347.93,0.00010817,2]
[352369298,1739064662200,-666.15,0.00010817,2]
[352369299,1739064662210,-205.11191652,0.00010817,2]
[352369300,1739064662219,-1814.49,0.00010817,2]
[352369301,1739064662228,-151.0,0.00010818,2]
[352369302,1739064662238,-151.0,0.00010818,2]
[352369303,1739064662247,-500.0,0.00010818,2]
[352369304,1739064662257,-500.0,0.00010818,2]
[352369305,1739064662266,-500.0,0.00010818,2]
[352369306,1739064662276,-500.0,0.00010818,2]
[352369307,1739064662285,-458.66890859,0.00010818,2]
[352369308,1739064662295,-500.0,0.00010818,2]
[352369309,1739064662305,-500.0,0.00010818,2]
[352369310,1739064662315,-453.6053868,0.00010818,2]
[352369311,1739064662325,-398.48,0.00010818,2]
[352369312,1739064662334,-500.0,0.00010818,2]
[352369313,1739064662344,-500.0,0.00010818,2]
[352369314,1739064662353,-511.37,0.00010818,2]
[352369315,1739064662363,-500.0,0.00010818,2]
[352369316,1739064662374,-151.0,0.00010818,2]
[352369317,1739064662383,-500.0,0.00010818,2]
[352369318,1739064662392,-500.0,0.00010818,2]
[352369319,1739064662401,-4807.33,0.00010818,2]
[352369320,1739064662412,-556.57,0.00010818,2]
[352369321,1739064662423,-500.0,0.00010818,2]
[352369322,1739064662433,-858.03,0.00010818,2]
[352369323,1739064662443,-500.0,0.00010818,2]
[352369324,1739064662452,-500.0,0.00010818,2]
[352369325,1739064662462,-206.02,0.00010818,2]
[352369326,1739064662472,-921.88,0.00010818,2]
[352369327,1739064662482,-824.93,0.00010818,2]
[352369328,1739064662491,-2677.06,0.00010818,2]
[352369329,1739064662500,-500.0,0.00010818,2]
[352369330,1739064662510,-500.0,0.00010818,2]
[352369331,1739064662520,-500.0,0.00010818,2]
[352369332,1739064662530,-1057.44,0.00010818,2]
[352369333,1739064662539,-500.0,0.00010818,2]
[352369334,1739064662548,-1172.16,0.00010818,2]
[352369335,1739064662558,-1000.0,0.00010818,2]
[352369336,1739064662568,-500.0,0.00010818,2]
[352369337,1739064662577,-922.59,0.00010818,2]
[352369338,1739064662587,-1998.27,0.00010818,2]
[352369339,1739064662598,-500.0,0.00010818,2]
[352369340,1739064662607,-2158.17,0.00010818,2]
[352369341,1739064662617,-500.0,0.00010818,2]
[352369342,1739064662627,-546.75488494,0.00010818,2]
[352369343,1739064662636,-500.0,0.00010818,2]
[352369344,1739064662645,-500.0,0.00010818,2]
[352369345,1739064662655,-500.0,0.00010818,2]
[352369346,1739064662664,-339.23427225,0.00010818,2]
[352369347,1739064662676,-500.0,0.00010818,2]
[352369348,1739064662686,-155.92324778,0.00010818,2]
[352369349,1739064662700,-500.0,0.00010821,2]
[352369350,1739064662710,-500.0,0.00010821,2]
[352369351,1739064662720,-500.0,0.00010821,2]
[352369352,1739064662730,-500.0,0.00010821,2]
[352369353,1739064662740,-500.0,0.00010821,2]
[352369354,1739064662750,-500.0,0.00010821,2]
[352369355,1739064662761,-500.0,0.00010821,2]
[352369356,1739064662772,-500.0,0.00010821,2]
[352369357,1739064662782,-500.0,0.00010821,2]
[352369358,1739064662793,-500.0,0.00010821,2]
[352369359,1739064662803,-500.0,0.00010821,2]
[352369360,1739064662812,-500.0,0.00010821,2]
[352369361,1739064662822,-500.0,0.00010821,2]
[352369362,1739064662832,-500.0,0.00010821,2]
[352369363,1739064662842,-500.0,0.00010821,2]
[352369364,1739064662852,-500.0,0.00010821,2]
[352369365,1739064662861,-500.0,0.00010821,2]
[352369366,1739064662871,-500.0,0.00010821,2]
[352369367,1739064662881,-500.0,0.00010821,2]
[352369368,1739064662891,-500.0,0.00010821,2]
[352369369,1739064662902,-500.0,0.00010821,2]
[352369370,1739064662912,-524.96,0.00010821,2]
[352369371,1739064662922,-538.42,0.00010821,2]
[352369372,1739064662932,-517.99,0.00010821,2]
[352369373,1739064662942,-197.49,0.00010821,2]
[352369374,1739064662952,-271.84,0.00010821,2]
[352369375,1739064662963,-290.31,0.00010821,2]
[352369376,1739064662974,-613.34457683,0.00010821,2]
[352369377,1739064662984,-200.0,0.00010834,2]
[352369378,1739064662994,-556.38052737,0.00010851,2]
[352369379,1739064663004,-556.38052737,0.00010853,2]
[352369380,1739064663014,-556.38052737,0.00010858,2]
[352369381,1739064663024,-556.38052737,0.00010863,2]
[352369382,1739064663033,-200.0,0.00010899,2]
[352369383,1739064663043,-161.32982169,0.000109,2]
[352369384,1739064663053,-161.32982169,0.000109,2]
[352369385,1739064663062,-161.32982169,0.000109,2]
[352369386,1739064663072,-500.0,0.000109,3]
[352369387,1739064663082,-673.11629158,0.000109,2]
[352369388,1739064663092,-155.69641508,0.000109,2]
[352369389,1739064663103,-789.31896834,0.00010947,2]
[352369390,1739064663113,-500.0,0.00010952,2]
[352369391,1739064663123,-500.0,0.00010952,2]
[352369392,1739064663134,-500.0,0.00010952,2]
[352369393,1739064663143,-1135.49,0.00010952,2]
[352369394,1739064663153,-1491.25,0.00010952,2]
[352369395,1739064663163,-500.0,0.00010952,2]
[352369396,1739064663174,-1096.4,0.00010952,2]
[352369397,1739064663185,-1926.31,0.00010952,2]
[352369398,1739064663195,-1553.33,0.00010952,2]
[352369399,1739064663206,-524.3,0.00010952,2]
[352369400,1739064663217,-1505.29,0.00010952,2]
[352369401,1739064663227,-500.0,0.00010952,2]
[352369402,1739064663238,-500.0,0.00010952,2]
[352369403,1739064663248,-765.69,0.00010952,2]
[352369404,1739064663258,-365.78140179,0.00010952,2]
[352369405,1739064663268,-500.0,0.00010952,2]
[352369406,1739064663278,-1250.11,0.00010952,2]
[352369407,1739064663288,-500.0,0.00010952,2]
[352369408,1739064663297,-1265.23,0.00010953,2]
[352369409,1739064663308,-942.17,0.00010953,2]
[352369410,1739064663319,-571.56,0.00010953,2]
[352369411,1739064663329,-608.72,0.00010953,2]
[352369412,1739064663340,-903.56,0.00010953,2]
[352369413,1739064663350,-761.356549,0.00010953,2]
[352369414,1739064663360,-1567.35,0.00010953,2]
[352369415,1739064663370,-500.0,0.00010953,2]
[352369416,1739064663381,-500.0,0.00010953,2]
[352369417,1739064663391,-1529.17,0.00010953,2]
[352369418,1739064663401,-820.43,0.00010953,2]
[352369419,1739064663411,-2229.24,0.00010953,2]
[352369420,1739064663422,-614.12,0.00010953,2]
[352369421,1739064663433,-635.519756,0.00010953,2]
[352369422,1739064663443,-824.85,0.00010953,2]
[352369423,1739064663454,-1108.77,0.00010953,2]
[352369424,1739064663465,-500.0,0.00010953,2]
[352369425,1739064663475,-1431.97,0.00010953,2]
[352369426,1739064663485,-1577.26,0.00010953,2]
[352369427,1739064663495,-750.94,0.00010953,2]
[352369428,1739064663506,-1128.64,0.00010953,2]
[352369429,1739064663516,-985.47,0.00010953,2]
[352369430,1739064663526,-1364.15,0.00010953,2]
[352369431,1739064663536,-2826.52,0.00010953,2]
[352369432,1739064663547,-2171.01,0.00010953,2]
[352369433,1739064663558,-1345.65,0.00010953,2]
[352369434,1739064663567,-757.14,0.00010953,2]
[352369435,1739064663578,-500.0,0.00010953,2]
[352369436,1739064663588,-1180.09,0.00010953,2]
[352369437,1739064663598,-500.0,0.00010953,2]
[352369438,1739064663608,-150.431627,0.00010953,2]
[352369439,1739064663619,-500.0,0.00010953,2]
[352369440,1739064663629,-1527.24,0.00010953,2]
[352369441,1739064663638,-1297.73,0.00010953,2]
[352369442,1739064663649,-879.7,0.00010953,2]
[352369443,1739064663659,-661.94,0.00010953,2]
[352369444,1739064663671,-1376.76,0.00010953,2]
[352369445,1739064663681,-1567.33,0.00010953,2]
[352369446,1739064663691,-500.0,0.00010953,2]
[352369447,1739064663705,-1076.91,0.00010953,2]
[352369448,1739064663715,-2050.57,0.00010953,2]
[352369449,1739064663725,-593.35,0.00010953,2]
[352369450,1739064663736,-650.17,0.00010954,2]
[352369451,1739064663747,-303.04605506,0.00010954,2]
[352369452,1739064663758,-500.0,0.00010954,2]
[352369453,1739064663768,-676.84,0.00010954,2]
[352369454,1739064663780,-500.0,0.00010954,2]
[352369455,1739064663790,-546.96,0.00010954,2]
[352369456,1739064663800,-500.0,0.00010954,2]
[352369457,1739064663811,-500.0,0.00010954,2]
[352369458,1739064663821,-500.0,0.00010954,2]
[352369459,1739064663832,-576.95,0.00010954,2]
[352369460,1739064663842,-500.0,0.00010954,2]
[352369461,1739064663852,-500.0,0.00010954,2]
[352369462,1739064663863,-525.03,0.00010954,2]
[352369463,1739064663874,-688.22,0.00010954,2]
[352369464,1739064663884,-501.05,0.00010954,2]
[352369465,1739064663895,-435.62,0.00010954,2]
[352369466,1739064663905,-751.95,0.00010954,2]
[352369467,1739064663915,-500.0,0.00010954,2]
[352369468,1739064663926,-500.0,0.00010954,2]
[352369469,1739064663936,-500.0,0.00010954,2]
[352369470,1739064663946,-751.58,0.00010954,2]
[352369471,1739064663956,-500.0,0.00010954,2]
[352369472,1739064663966,-500.0,0.00010954,2]
[352369473,1739064663976,-598.94,0.00010954,2]
[352369474,1739064663986,-713.69,0.00010954,2]
[352369475,1739064663996,-500.0,0.00010954,2]
[352369476,1739064664006,-500.0,0.00010954,2]
[352369477,1739064664016,-500.0,0.00010954,2]
[352369478,1739064664026,-500.0,0.00010954,2]
[352369479,1739064664036,-500.0,0.00010954,2]
[352369480,1739064664047,-743.85,0.00010954,2]
[352369481,1739064664057,-778.11,0.00010954,2]
[352369482,1739064664067,-686.06,0.00010954,2]
[352369483,1739064664078,-500.0,0.00010954,2]
[352369484,1739064664089,-500.0,0.00010954,2]
[352369485,1739064664099,-640.12,0.00010954,2]
[352369486,1739064664110,-625.79,0.00010954,2]
[352369487,1739064664120,-228.93856051,0.00010954,2]
[352369488,1739064664130,-620.92,0.00010954,2]
[352369489,1739064664140,-677.96,0.00010954,2]
[352369490,1739064664150,-500.0,0.00010954,2]
[352369491,1739064664160,-500.0,0.00010954,2]
[352369492,1739064664171,-500.0,0.00010954,2]
[352369493,1739064664182,-500.0,0.00010954,2]
[352369494,1739064664193,-221.9,0.00010954,2]
[352369495,1739064664203,-2934.3,0.00010954,2]
[352369496,1739064664214,-500.0,0.00010954,2]
[352369497,1739064664224,-1525.17,0.00010954,2]
[352369498,1739064664235,-774.95,0.00010954,2]
[352369499,1739064664245,-1829.66,0.00010954,2]
[352369500,1739064664256,-789.04,0.00010954,2]
[352369501,1739064664266,-997.18,0.00010954,2]
[352369502,1739064664277,-1816.27,0.00010954,2]
[352369503,1739064664287,-500.0,0.00010954,2]
[352369504,1739064664297,-1562.18,0.00010954,2]
[352369505,1739064664308,-680.61,0.00010954,2]
[352369506,1739064664319,-1099.38,0.00010954,2]
[352369507,1739064664330,-512.52,0.00010954,2]
[352369508,1739064664340,-530.22,0.00010954,2]
[352369509,1739064664351,-533.58,0.00010954,2]
[352369510,1739064664361,-1750.36,0.00010954,2]
[352369511,1739064664371,-500.0,0.00010954,2]
[352369512,1739064664381,-1168.81,0.00010954,2]
[352369513,1739064664391,-245.48,0.00010954,2]
[352369514,1739064664401,-919.27,0.00010954,2]
[352369515,1739064664411,-209.08,0.00010954,2]
[352369516,1739064664426,-635.21,0.00010954,2]
[352369517,1739064664436,-500.0,0.00010954,2]
[352369518,1739064664447,-500.0,0.00010954,2]
[352369519,1739064664457,-421.3,0.00010954,2]
[352369520,1739064664468,-2329.56,0.00010954,2]
[352369521,1739064664479,-841.19,0.00010954,2]
[352369522,1739064664489,-731.35,0.00010954,2]
[352369523,1739064664499,-830.41,0.00010954,2]
[352369524,1739064664510,-880.9,0.00010954,2]
[352369525,1739064664520,-500.0,0.00010954,2]
[352369526,1739064664529,-523.25,0.00010954,2]
[352369527,1739064664540,-565.26,0.00010954,2]
[352369528,1739064664550,-610.98,0.00010954,2]
[352369529,1739064664559,-500.0,0.00010954,2]
[352369530,1739064664570,-500.0,0.00010954,2]
[352369531,1739064664580,-1181.58,0.00010954,2]
[352369532,1739064664590,-500.0,0.00010954,2]
[352369533,1739064664600,-2957.55,0.00010954,2]
[352369534,1739064664610,-1035.92,0.00010954,2]
[352369535,1739064664621,-525.11,0.00010954,2]
[352369536,1739064664640,-1347.93,0.00010954,2]
[352369537,1739064664651,-666.15,0.00010954,2]
[352369538,1739064664660,-1814.49,0.00010954,2]
[352369539,1739064664670,-552.34,0.00010955,2]
[352369540,1739064664680,-500.0,0.00010955,2]
[352369541,1739064664692,-576.6,0.00010955,2]
[352369542,1739064664706,-4807.33,0.00010955,2]
[352369543,1739064664716,-348.9,0.00010955,2]
[352369544,1739064664727,-858.03,0.00010955,2]
[352369545,1739064664737,-500.0,0.00010955,2]
[352369546,1739064664747,-500.0,0.00010955,2]
[352369547,1739064664757,-921.88,0.00010955,2]
[352369548,1739064664769,-824.93,0.00010955,2]
[352369549,1739064664780,-2677.06,0.00010955,2]
[352369550,1739064664790,-354.75,0.00010955,2]
[352369551,1739064664800,-618.76,0.00010955,2]
[352369552,1739064664810,-1057.44,0.00010955,2]
[352369553,1739064664819,-595.84,0.00010955,2]
[352369554,1739064664833,-1172.16,0.00010955,2]
[352369555,1739064664843,-1000.0,0.00010955,2]
[352369556,1739064664854,-500.0,0.00010955,2]
[352369557,1739064664865,-922.59,0.00010955,2]
[352369558,1739064665080,-1998.27,0.00010955,2]
[352369559,1739064665090,-2158.17,0.00010955,2]
[352369560,1739064665100,-194.38,0.00010955,2]
[352369561,1739064665110,-191.04,0.00010955,2]
[352369562,1739064665120,-500.0,0.00010955,2]
[352369563,1739064665129,-500.0,0.00010955,2]
[352369564,1739064665139,-500.0,0.00010958,2]
[352369565,1739064665148,-500.0,0.00010958,2]
[352369566,1739064665157,-500.0,0.00010958,2]
[352369567,1739064665167,-622.11224279,0.00010958,2]
[352369568,1739064665177,-500.0,0.00010958,2]
[352369569,1739064665189,-595.08134204,0.00010958,2]
[352369570,1739064665199,-315.49,0.00010958,2]
[352369571,1739064665208,-554.69,0.00010958,2]
[352369572,1739064665218,-500.0,0.00010958,2]
[352369573,1739064665228,-500.0,0.00010958,2]
[352369574,1739064665237,-500.0,0.00010958,2]
[352369575,1739064665247,-500.0,0.00010958,2]
[352369576,1739064665256,-500.0,0.00010958,2]
[352369577,1739064665266,-500.0,0.00010958,2]
[352369578,1739064665276,-500.0,0.00010958,2]
[352369579,1739064665286,-500.0,0.00010958,2]
[352369580,1739064665296,-500.0,0.00010958,2]
[352369581,1739064665306,-500.0,0.00010958,2]
[352369582,1739064665316,-398.61248657,0.00010958,2]
[352369583,1739064665325,-500.0,0.00010958,2]
[352369584,1739064665336,-524.96,0.00010958,2]
[352369585,1739064665345,-538.42,0.00010958,2]
[352369586,1739064665355,-517.99,0.00010958,2]
[352369587,1739064665365,-150.0,0.00010959,2]
[352369588,1739064665375,-503.26976553,0.0001097,2]
[352369589,1739064665384,-500.0,0.0001099,2]
[352369590,1739064665394,-305.58301438,0.0001099,2]
[352369591,1739064665404,-305.58301438,0.0001099,2]
[352369592,1739064665414,-449.29,0.00010992,2]
[352369593,1739064665425,-150.0,0.00010992,2]
[352369594,1739064665435,-150.0,0.00010992,2]
[352369595,1739064665445,-150.0,0.00010992,2]
[352369596,1739064665454,-151.7,0.00010992,2]
[352369597,1739064665464,-799.77696101,0.00010998,2]
[352369598,1739064665474,-177.4610473,0.00010999,2]
[352369599,1739064665484,-151.0,0.00010999,2]
[352369600,1739064665493,-151.0,0.00010999,2]
[352369601,1739064665503,-151.0,0.00010999,2]
[352369602,1739064665512,-151.0,0.00010999,2]
[352369603,1739064665522,-545.51,0.00010999,2]
[352369604,1739064665531,-300.0,0.00010999,2]
[352369605,1739064665541,-300.0,0.00010999,2]
[352369606,1739064665550,-2561265.23606636,0.00011,2]
[352369607,1739064665825,-2053.4988,0.00011,2]
[352369608,1739064665838,-610.22697178,0.00011,2]
[352369609,1739064665849,-1098.26608439,0.00011,2]
[352369610,1739064665860,-831.98038301,0.00011,2]
[352369611,1739064665872,-365.08370696,0.00011,2]
[352369612,1739064665898,-500.0,0.00010543,2]
[352369613,1739064665908,-10248.23128327,0.00011,2]
[352369614,1739064665920,-48480.78986703,0.00011,2]
[352369615,1739064665932,-582.27999921,0.00011,2]
[352369616,1739064665944,-1911.57,0.00011,2]
[352369617,1739064665976,-1463.58,0.00011,2]
[352369618,1739064665987,-440.28312614,0.00011,2]
[352369619,1739064665999,-7270.766872,0.00011,2]
[352369620,1739064666011,-19399.81409408,0.00011,2]
[352369621,1739064666024,-509.51439296,0.00011,2]
[352369622,1739064666349,-500.0,0.00010131,2]
[352369623,1739064666359,-500.0,0.00010133,2]
[352369624,1739064666371,-500.0,0.00010268,2]
[352369625,1739064666382,-500.0,0.0001027,2]
[352369626,1739064666392,-256.50655973,0.00010405,2]
[352369627,1739064666405,-243.49344027,0.00010405,2]
[352369628,1739064666415,-500.0,0.00010542,2]
[352369629,1739064666429,-500.0,0.00010679,2]
[352369630,1739064666438,-500.0,0.0001068,2]
[352369631,1739064666448,-500.0,0.00010816,2]
[352369632,1739064666458,-500.0,0.00010817,2]
[352369633,1739064666468,-500.0,0.00010954,2]
[352369634,1739064666478,-8184.9015434,0.00011,2]
[352369635,1739064666491,-4461.53053296,0.00011,2]
[352369636,1739064666502,-6526.84105662,0.00011,2]
[352369637,1739064666543,-500.0,0.00010133,2]
[352369638,1739064666553,-506.5712563,0.00010407,2]
[352369639,1739064666563,-500.0,0.00010953,2]
[352369640,1739064666573,-222.20136955,0.00011,2]
[352369641,1739064666585,-1925.36,0.00011,2]
[352369642,1739064666597,-950.94511262,0.00011,2]
[352369643,1739064666612,-574.72339879,0.00011,2]
[352369644,1739064666624,-60730.05,0.00011,2]
[352369645,1739064666647,-507.80422931,0.00010132,2]
[352369646,1739064666657,-229.70110205,0.00011,2]
[352369647,1739064666670,-3091.82957603,0.00011,2]
[352369648,1739064666682,-784.2869715,0.00011,2]
[352369649,1739064666694,-971.61839741,0.00011,2]
[352369650,1739064666724,-2004.69357214,0.00011,2]
[352369651,1739064666736,-508.00324188,0.00011,2]
[352369652,1739064666748,-738.9608181,0.00011,2]
[352369653,1739064666760,-477.76,0.00011,2]
[352369654,1739064667093,-508.64464055,0.0001013,2]
[352369655,1739064667102,-505.16694501,0.0001013,2]
[352369656,1739064667158,-527.889106,0.00010132,2]
[352369657,1739064667168,-151.34,0.00010133,2]
[352369658,1739064667179,-502.64208712,0.00010133,2]
[352369659,1739064667189,-500.0,0.00010133,2]
[352369660,1739064667199,-500.0,0.0001027,2]
[352369661,1739064667208,-503.61583952,0.0001027,2]
[352369662,1739064667217,-508.63783736,0.00010407,2]
[352369663,1739064667227,-355.1754334,0.0001048,2]
[352369664,1739064667236,-152.46,0.00010633,2]
[352369665,1739064667245,-205.67765474,0.000109,2]
[352369666,1739064667254,-56902.73968445,0.00011,2]
[352369667,1739064667266,-397212.60908087,0.00011,2]
[352369668,1739064667360,-562.42840411,0.00011,2]
[352369669,1739064667372,-396.85229788,0.00011,2]
[352369670,1739064667384,-36993.32805108,0.00011,2]
[352369671,1739064667395,-284.74638608,0.00011,2]
[352369672,1739064667406,-2320.94296721,0.00011,2]
[352369673,1739064667417,-962.922,0.00011,2]
[352369674,1739064667430,-1504.20268833,0.00011,2]
[352369675,1739064667441,-1151.49925379,0.00011,2]
[352369676,1739064667452,-254.39513532,0.00011,2]
[352369677,1739064667925,-502.24954425,0.0001013,2]
[352369678,1739064667935,-507.30464859,0.0001013,2]
[352369679,1739064667944,-500.0,0.00010131,2]
[352369680,1739064667953,-500.0,0.00010132,2]
[352369681,1739064667962,-376.43,0.00010133,2]
[352369682,1739064667971,-505.90721649,0.00010133,2]
[352369683,1739064667980,-500.0,0.00010133,2]
[352369684,1739064667989,-500.0,0.00010268,2]
[352369685,1739064667998,-500.0,0.00010269,2]
[352369686,1739064668007,-357.24326468,0.0001027,2]
[352369687,1739064668016,-500.0,0.00010405,2]
[352369688,1739064668025,-500.0,0.00010406,2]
[352369689,1739064668035,-500.0,0.00010542,2]
[352369690,1739064668045,-500.0,0.00010543,2]
[352369691,1739064668054,-500.0,0.00010679,2]
[352369692,1739064668063,-500.0,0.0001068,2]
[352369693,1739064668072,-500.0,0.00010816,2]
[352369694,1739064668081,-500.0,0.00010817,2]
[352369695,1739064668090,-500.0,0.00010953,2]
[352369696,1739064668098,-500.0,0.00010954,2]
[352369697,1739064668107,-363582.72860198,0.00011,2]
[352369698,1739064668118,-3168.93461459,0.00011,2]
[352369699,1739064668129,-1168.084298,0.00011,2]
[352369700,1739064668140,-658.63300375,0.00011,2]
[352369701,1739064668151,-2996.10293104,0.00011,2]
[352369702,1739064668163,-51550.0,0.00011,2]
[352369703,1739064668176,-966.75711992,0.00011,2]
[352369704,1739064668202,-1114.05599975,0.00011,2]
[352369705,1739064668213,-608.83533071,0.00011,2]
[352369706,1739064668225,-560.27966321,0.00011,2]
[352369709,1739064776256,1444.82,0.0002,120]
[352369710,1739064827640,817.92,8.219e-05,2]
[352369712,1739065087291,2863.799025,0.0002,120]
[352369713,1739065106043,10000.0,0.0002,120]
[352369714,1739065157810,651.671498,0.0002,120]
[352369715,1739065379289,1000.0,8.883e-05,2]
[352369767,1739065588713,517.43616112,0.0002,120]
[352369768,1739065604819,500.0,0.0002,120]
[352369769,1739065618672,-150.0,0.00020207,120]
[352369770,1739065618698,-150.0,0.00020438,120]
[352369771,1739065618722,-150.0,0.00020495,120]
[352369772,1739065618762,-150.0,0.00020933,120]
[352369773,1739065618786,-150.0,0.00020986,120]
[352369774,1739065618810,-150.0,0.00020988,120]
[352369775,1739065618834,-150.0,0.0002107,120]
[352369776,1739065618858,-150.0,0.00021118,120]
[352369777,1739065618883,-150.0,0.00021224,120]
[352369778,1739065618909,-150.0,0.0002142,120]
[352369779,1739065618936,-150.0,0.00021563,120]
[352369780,1739065618961,-150.0,0.00021631,120]
[352369781,1739065618985,-537.0962286,0.00021917,120]
[352369782,1739065619015,-150.0,0.00021996,120]
[352369783,1739065619039,-2656.32,0.00022,120]
[352369784,1739065619063,-5304.73817545,0.00022,120]
[352369785,1739065619089,-150.0,0.00022237,120]
[352369786,1739065619115,-150.0,0.0002226,120]
[352369787,1739065619139,-150.0,0.00022324,120]
[352369788,1739065619165,-150.0,0.00022368,120]
[352369789,1739065619190,-150.0,0.0002238,120]
[352369790,1739065619215,-500.0,0.000225,120]
[352369791,1739065619240,-2000.0,0.000225,120]
[352369792,1739065619263,-500.0,0.000225,120]
[352369793,1739065619287,-200.0,0.000225,120]
[352369794,1739065619311,-150.0,0.00022514,120]
[352369795,1739065619334,-370.27121949,0.00022739,120]
[352369796,1739065619358,-150.0,0.00022744,120]
[352369797,1739065619384,-150.0,0.00022819,120]
[352369798,1739065619412,-1017.00338094,0.00023,120]
[352369799,1739065619437,-1559.69353367,0.0002301,120]
[352369800,1739065619462,-150.0,0.00023017,120]
[352369801,1739065619487,-150.0,0.00023136,120]
[352369802,1739065619512,-150.0,0.00023312,120]
[352369803,1739065619538,-2000.0,0.000236,120]
[352369804,1739065619562,-150.0,0.00023673,120]
[352369805,1739065619586,-200.0,0.00023734,120]
[352369806,1739065619610,-150.0,0.00023798,120]
[352369807,1739065619636,-500.0,0.00023942,120]
[352369808,1739065619663,-2440.824,0.00024,120]
[352369809,1739065619686,-500.0,0.000241,120]
[352369810,1739065619713,-150.0,0.00024279,120]
[352369811,1739065619738,-150.0,0.00024297,120]
[352369812,1739065619763,-150.0,0.0002449,120]
[352369813,1739065619788,-150.0,0.0002458,120]
[352369814,1739065619812,-2000.0,0.000247,120]
[352369815,1739065619836,-150.0,0.00024773,120]
[352369816,1739065619861,-150.0,0.00024915,120]
[352369817,1739065619886,-200.0,0.00024968,120]
[352369818,1739065619909,-428.0,0.0002497,120]
[352369819,1739065619934,-428.0,0.0002497,120]
[352369820,1739065619959,-428.0,0.0002498,120]
[352369821,1739065620252,-428.0,0.0002498,120]
[352369822,1739065620284,-428.0,0.0002498,120]
[352369823,1739065620310,-428.7,0.0002498,120]
[352369824,1739065620334,-428.0,0.0002499,120]
[352369825,1739065620362,-428.0,0.0002499,120]
[352369826,1739065620386,-428.0,0.0002499,120]
[352369827,1739065620411,-428.0,0.0002499,120]
[352369828,1739065620437,-500.0,0.00024999,120]
[352369829,1739065620464,-10267933.35346185,0.00025,120]
[352369840,1739065764467,818.52,8.219e-05,2]
[352369847,1739065831636,-250.0,8.935e-05,2]
[352369848,1739065831645,-14.25175879,8.972e-05,2]
[352369849,1739065831656,-135.74824121,8.972e-05,2]
[352369850,1739065831665,-1824.25175859,8.973e-05,2]
[352369851,1739065831701,-2007.24781503,8.973e-05,2]
[352369852,1739065831713,-1387.1710257,8.973e-05,2]
[352369853,1739065831769,-426.36644233,8.973e-05,2]
[352369854,1739065831835,-20437.85965835,8.973e-05,2]
[352369855,1739065831844,-5000.0,8.973e-05,2]
[352369856,1739065831853,-530.19611245,8.973e-05,2]
[352369857,1739065831862,-865.76416317,8.973e-05,2]
[352369858,1739065831871,-150.0,9.233e-05,2]
[352369859,1739065831880,-152.2,9.267e-05,2]
[352369860,1739065831889,-607.01,9.269e-05,2]
[352369861,1739065831898,-152.2,9.274e-05,2]
[352369862,1739065831907,-152.2,9.28e-05,2]